[Event "1st Serbian League 2022"]
[Site "Vrnjacka Banja"]
[Date "2022.09.24"]
[Round "5.31"]
[White "Predojevic, Borki"]
[Black "Tadic, Stefan"]
[Result "1/2-1/2"]
[ECO "D12"]
[WhiteElo "2584"]
[BlackElo "2318"]
[Annotator "TA"]
[PlyCount "41"]
[EventDate "2022.09.20"]
[EventType "team-tourn"]
[EventCountry "SRB"]
[SourceTitle "playchess.com"]
[Source "ChessBase"]
[SourceQuality "1"]
[TimeControl "40/5400+30:1800+30"]

{[%evp 14,41,46,39,49,39,43,43,49,52,58,20,31,40,30,29,27,22,29,34,61,27,25,10,15,14,14,0,5,7]} 1. Nf3 {[%emt 0:00:03]} Nf6 {[%emt 0:01:12]} 2. c4 {[%emt 0:01:22]} c6 {[%emt 0:03:40]} 3. Nc3 {[%emt 0:03:15]} d5 {[%emt 0:00:08]} 4. e3 {[%emt 0:00:06]} Bf5 {[%emt 0:08:03]} 5. cxd5 {[%emt 0:11:21]} Nxd5 {[%emt 0:02:34]} 6. d4 {[%emt 0:05:05]} e6 {[%emt 0:06:29]} 7. Bd3 {[%emt 0:05:21]} Bxd3 {[%emt 0:08:48]} 8. Qxd3 {[%emt 0:00:33]} Be7 {[%emt 0:00:30] D12: Slav Defence: 3 Nf3 Nf6 4 e3 Bf5.} 9. O-O {[%emt 0:00:31]} O-O {[%emt 0:00:27]} 10. e4 {[%emt 0:08:58]} Nxc3 {[%emt 0:01:25] White is slightly better.} 11. bxc3 {[%emt 0:01:00]} Qc7 {[%emt 0:00:09]} 12. c4 {[%emt 0:17:32]} Nd7 {[%emt 0:03:01]} 13. Bb2 {[%emt 0:00:11]} Rad8 {[%emt 0:02:28][%cal Oe6e5] [#]} 14. Qc2 $146 {[%emt 0:03:00]} ({Predecessor:} 14. Rfd1 h6 15. Rab1 Qa5 16. Qb3 Qa6 17. Ba1 Rfe8 18. Qxb7 Qxc4 19. Qxa7 {1-0 (46) Csernus,R (1647)-Drobotov,G (1473) LSS email 2015}) 14... Rfe8 {[%emt 0:05:23]} 15. a4 {[%emt 0:07:10]} c5 {[%emt 0:17:58]} 16. d5 {[%emt 0:00:17]} exd5 {[%emt 0:00:05]} 17. exd5 {[%emt 0:07:14]} (17. cxd5 $5 {[%cal Re4e5]} Bd6 18. Rab1 $11) 17... Bf6 {[%emt 0:02:56]} 18. g3 {[%emt 0:04:10]} Bxb2 {[%emt 0:03:37] The position is equal.} 19. Qxb2 {[%emt 0:00:03]} Nb6 {[%emt 0:00:08]} 20. Qc2 {[%emt 0:03:32]} h6 {[%emt 0:02:45] Prevents Ng5.} 21. Rfe1 {[%emt 0:12:38] Weighted Error Value: White=0.10 (very precise) /Black=0.01 (flawless)} 1/2-1/2

[Event "1st Serbian League 2022"]
[Site "Vrnjacka Banja"]
[Date "2022.09.24"]
[Round "5.32"]
[White "Ivanovic, Marko"]
[Black "Bogosavljevic, Boban"]
[Result "1-0"]
[ECO "C41"]
[WhiteElo "2265"]
[BlackElo "2533"]
[Annotator "TA"]
[PlyCount "95"]
[EventDate "2022.09.20"]
[EventType "team-tourn"]
[EventCountry "SRB"]
[SourceTitle "playchess.com"]
[Source "ChessBase"]
[SourceQuality "1"]
[TimeControl "40/5400+30:1800+30"]

{[%evp 18,95,65,56,64,56,55,60,60,40,81,85,136,118,171,166,164,168,177,163,181,164,194,184,222,199,189,196,175,141,305,291,565,97,106,107,114,114,112,103,96,58,56,53,97,53,59,64,159,145,166,172,200,171,320,289,312,322,427,434,380,409,481,465,369,359,702,686,595,649,916,1025,1857,1906,1687,1537,2360,2317,1478,1474]} 1. e4 {[%emt 0:04:29]} e5 {[%emt 0:00:17]} 2. Nf3 {[%emt 0:00:07]} d6 {[%emt 0:00:05]} 3. d4 {[%emt 0:00:23]} exd4 {[%emt 0:00:05]} 4. Nxd4 {[%emt 0:00:05]} Nf6 {[%emt 0:00:05]} 5. Nc3 {[%emt 0:00:07]} Be7 {[%emt 0:00:06]} 6. Bf4 {[%emt 0:00:22]} O-O {[%emt 0:00:28]} 7. Qd2 {[%emt 0:00:05]} Nc6 {[%emt 0:01:57]} 8. O-O-O {[%emt 0:01:25]} Nxd4 {[%emt 0:03:25]} 9. Qxd4 {[%emt 0:01:45]} Be6 {[%emt 0:00:42]} 10. f3 {[%emt 0:00:45]} c5 {[%emt 0:10:39] C41: Philidor Defence.} 11. Qd2 {[%emt 0:11:28]} a6 {[%emt 0:01:03]} 12. g4 {[%emt 0:01:39][%cal Bg2g4,Bg4g5,Bg5g6,Bg6f7][%mdl 32]} b5 {[%emt 0:01:44] White is slightly better.} 13. Kb1 {[%emt 0:06:35]} (13. Bxd6 Bxd6 14. Qxd6 Qa5 15. Qxc5 Rac8 $15) 13... c4 {[%emt 0:23:52] [#]} 14. g5 $146 {[%emt 0:17:54]} ({Predecessor:} 14. Bxd6 Bxd6 15. Qxd6 Qa5 16. a3 Rfd8 17. Qb4 Rxd1+ 18. Nxd1 Qd8 19. Nc3 Rb8 20. Qc5 {0-1 (61) Cubas,J (2438)-Ghaem Maghami,E (2604) ICC INT 2009}) 14... Nd7 {[%emt 0:01:23]} (14... Ne8 $142) 15. h4 $16 {[%emt 0:50:51][%cal Bh2h4,Bh4h5,Bh5h6][%mdl 32]} b4 {[%emt 0:43:40]} (15... Ne5 $16 {keeps fighting.}) 16. Nd5 $18 {[%emt 0:00:00]} Bxd5 {[%emt 0:00:04]} 17. Qxd5 {[%emt 0:00:00]} (17. exd5 $6 c3 18. Qd4 (18. bxc3 bxc3 19. Qxc3 f6 $11) 18... cxb2 $14) 17... c3 {[%emt 0:00:30]} 18. h5 {[%emt 0:00:00]} Ne5 {[%emt 0:02:22]} 19. g6 {[%emt 0:00:00] Threatens to win with h6.} Bf6 {[%emt 0:01:31]} 20. Bxe5 {[%emt 0:00:00]} ({Don't do} 20. Qxd6 $6 hxg6 21. hxg6 (21. Bxe5 Bxe5 22. Qxd8 Rfxd8 $11) 21... Nxg6 $14) 20... Bxe5 {[%emt 0:06:32]} 21. gxf7+ {[%emt 0:00:00]} Kh8 {[%emt 0:00:00]} 22. h6 {[%emt 0:00:00]} g6 {[%emt 0:00:00]} 23. Bc4 {[%emt 0:00:00]} cxb2 $2 {[%emt 0:00:00]} (23... a5 $16) 24. Rhf1 $1 {[%emt 0:00:00] Strongly threatening f4.} Qf6 {[%emt 0:00:00] [#]} (24... Bf4 25. Qd4+ (25. Kxb2 a5 $16) 25... Be5) 25. Qd2 $2 {[%emt 0:00:00]} (25. f4 $1 $18 {[%cal Rf4e5] and the rest is easy.} Bc3 26. e5) 25... Bf4 {[%emt 0:00:00]} 26. Qxb4 {[%emt 0:00:00]} a5 {[%emt 0:00:07]} 27. Qa3 $40 {[%emt 0:00:00][%mdl 128] White is out for blood.} ({Don't blunder} 27. Qxb2 $2 Rab8 28. Bb3 Qxb2+ 29. Kxb2 a4 $19) 27... Rac8 {[%emt 0:00:34]} 28. Bb3 {[%emt 0:00:00] Active counter play!} Rc5 {[%emt 0:00:29]} 29. Rd3 {[%emt 0:00:00]} Bxh6 {[%emt 0:00:57]} 30. Qxb2 {[%emt 0:00:00] Really sharp!} Qxb2+ {[%emt 0:00:56]} 31. Kxb2 {[%emt 0:00:00]} Bf4 {[%emt 0:00:09]} 32. Rd5 {[%emt 0:00:00]} Be5+ {[%emt 0:00:14] [#] White stays focused until the end.} (32... Rxd5 $14 33. Bxd5 Kg7) 33. Ka3 $1 $16 {[%emt 0:00:00]} Rxd5 {[%emt 0:00:52]} 34. Bxd5 {[%emt 0:00:00][%mdl 4096] Endgame Hoping for f4. KRB-KRB} Kg7 {[%emt 0:00:43]} 35. f4 {[%emt 0:00:00]} Bf6 {[%emt 0:00:26]} (35... Bc3 {was necessary.} 36. Kb3 Rc8) 36. Ka4 $18 {[%emt 0:00:00]} Bc3 {[%emt 0:01:33]} 37. Rf3 {[%emt 0:00:00]} Bd2 {[%emt 0:00:09]} 38. e5 {[%emt 0:00:00]} dxe5 {[%emt 0:01:17]} 39. fxe5 {[%emt 0:00:00]} Bb4 {[%emt 0:00:33]} 40. a3 {[%emt 0:00:00]} Be7 {[%emt 0:00:09]} 41. Kxa5 {[%emt 0:29:32] And now Kb6 would win.} g5 $2 {[%emt 0:05:34]} (41... Rd8) 42. Kb6 {[%emt 0:00:00] White is clearly winning.} g4 {[%emt 0:03:32]} 43. Rf1 {[%emt 0:00:00]} h5 {[%emt 0:07:46]} 44. Kc7 {[%emt 0:00:00] Against Rb8} Rd8 {[%emt 0:01:09]} 45. c4 {[%emt 0:00:00]} g3 {[%emt 0:08:53]} 46. a4 {[%emt 0:00:00]} Kf8 {[%emt 0:03:35]} 47. e6 {[%emt 0:00:00]} h4 {[%emt 0:03:20]} 48. Rf4 {[%emt 0:00:00] Weighted Error Value: White=0.21 (precise) /Black=0.47} 1-0

[Event "1st Serbian League 2022"]
[Site "Vrnjacka Banja"]
[Date "2022.09.24"]
[Round "5.33"]
[White "Vuckovic, Bojan"]
[Black "Sarenac, Ivan"]
[Result "1-0"]
[ECO "C78"]
[WhiteElo "2559"]
[BlackElo "2402"]
[Annotator "TA"]
[PlyCount "87"]
[EventDate "2022.09.20"]
[EventType "team-tourn"]
[EventCountry "SRB"]
[SourceTitle "playchess.com"]
[Source "ChessBase"]
[SourceQuality "1"]
[TimeControl "40/5400+30:1800+30"]

{[%evp 13,87,41,44,35,44,41,35,27,10,-15,-15,-64,-66,-77,-6,-14,-5,0,28,0,49,55,127,122,110,108,119,126,128,70,74,89,73,61,113,123,142,127,159,161,177,177,304,264,273,259,259,249,363,364,315,245,389,185,156,175,29977,29978,29978,29979,29979,29980,29980,29975,29970,0,5590,1232,1504,1140,29970,5527,5822,535,29967,29964]} 1. e4 {[%emt 0:00:08]} e5 {[%emt 0:00:07]} 2. Nf3 {[%emt 0:00:05]} Nc6 {[%emt 0:00:08]} 3. Bb5 {[%emt 0:00:12]} a6 {[%emt 0:00:10]} 4. Ba4 {[%emt 0:00:05]} Nf6 {[%emt 0:00:08]} 5. O-O {[%emt 0:00:08]} Bc5 {[%emt 0:00:09]} 6. c3 {[%emt 0:01:53]} O-O {[%emt 0:00:29]} 7. d4 {[%emt 0:01:50]} Ba7 {[%emt 0:00:10]} 8. Bg5 {[%emt 0:00:35] C78: Ruy Lopez: Archangelsk and Möller Defences.} h6 {[%emt 0:00:32]} 9. Bh4 {[%emt 0:00:39]} exd4 {[%emt 0:00:29]} 10. e5 {[%emt 0:21:51] White is slightly better.} g5 {[%emt 0:01:34]} 11. Bg3 {[%emt 0:00:32]} Ne4 {[%emt 0:00:42]} 12. Bc2 {[%emt 0:12:28]} (12. cxd4 $11 d5 13. exd6) 12... d5 $15 {[%emt 0:10:29] [#] Hoping for ...h5.} 13. Nxd4 $146 {[%emt 0:03:24]} ({Predecessor:} 13. exd6 Nxg3 14. hxg3 Qxd6 15. Qd3 f5 16. Re1 Bd7 17. Nbd2 dxc3 18. Qxd6 cxd6 19. Nc4 {0-1 (43) Juarez,C-Micheloud,L Argentina 1975}) 13... Nxg3 {[%emt 0:15:45]} (13... f5 $1 $17 {[%cal Rf5f4] Strongly threatening ...f4.} 14. f4 Bb6) 14. Nxc6 $11 {[%emt 0:01:16]} bxc6 {[%emt 0:00:12]} 15. hxg3 {[%emt 0:00:06]} f5 {[%emt 0:02:28]} 16. Nd2 {[%emt 0:03:07][%cal Bb1d2,Bd2b3,Bb3d4][%mdl 32]} Be6 {[%emt 0:10:11]} (16... Rb8 $11 {is more appropriate.}) 17. b4 $14 {[%emt 0:03:36]} c5 {[%emt 0:33:00] [#]} (17... Qe7 $14) 18. bxc5 $1 $16 {[%emt 0:02:21]} Bxc5 {[%emt 0:00:06]} 19. Nb3 Bb6 {[%emt 0:08:04]} 20. Nd4 {[%emt 0:01:51]} Qd7 {[%emt 0:00:05]} 21. Ba4 {[%emt 0:03:25]} ({White should try} 21. Qh5 $16 {Threatens to win with Qg6+.} Kg7 22. Rab1) 21... Qf7 $14 {[%emt 0:00:21]} 22. Bc6 $36 {[%emt 0:03:45][%mdl 2048] White is in control.} Rad8 {[%emt 0:00:06]} 23. Qf3 {[%emt 0:16:30] White is more active.} Bxd4 {[%emt 0:09:36] White leaves nothing to chance now.} ({Better is} 23... f4 $14) 24. cxd4 $16 {[%emt 0:00:11]} Rb8 {[%emt 0:00:03]} 25. Rac1 {[%emt 0:05:23]} f4 {[%emt 0:01:38]} 26. gxf4 {[%emt 0:01:35]} gxf4 {[%emt 0:01:54]} 27. Rc5 {[%emt 0:00:41][%cal Rc6d5]} Rbd8 {[%emt 0:00:34]} (27... Rfd8 $142 28. a3 h5) 28. Ba4 {[%emt 0:02:45]} Qg7 {[%emt 0:01:49]} 29. Rfc1 {[%emt 0:05:57]} Bg4 {[%emt 0:00:58]} 30. Qc3 {[%emt 0:00:49]} f3 {[%emt 0:00:11]} (30... Qg5 $142 31. Bb3 Be6 32. Rxc7 Kh8) 31. Rxc7 $18 {[%emt 0:01:14]} ({But not} 31. g3 Be6 32. Qd2 (32. Rxc7 Qg4 $18) 32... Qg5 33. Qxg5+ hxg5 34. Rxc7 Rc8 $18) 31... Qg5 {[%emt 0:02:23][%cal Og4d7]} 32. g3 {[%emt 0:03:12] And now Rb1 would win.} Rc8 {[%emt 0:01:15]} (32... h5 $142) 33. Bb3 {[%emt 0:01:54]} (33. Rb1 $142) 33... Rxc7 {[%emt 0:00:39]} 34. Qxc7 {[%emt 0:00:06]} Rc8 $2 {[%emt 0:00:31]} (34... Be6 $18 35. Qc6 Rf7) 35. Bxd5+ {[%emt 0:00:15]} Kh8 {[%emt 0:00:04]} 36. Qxc8+ {[%emt 0:00:22]} Bxc8 {[%emt 0:00:03]} 37. Rxc8+ {[%emt 0:00:05] KQ-KRB} Kh7 {[%emt 0:00:02]} 38. Rc7+ {[%emt 0:01:26]} Kh8 {[%emt 0:00:10] [#]} 39. Rc8+ {[%emt 0:00:10]} (39. e6 $142 $1 Qd2 40. e7 (40. Rc8+ Kg7 $18) 40... Qe1+ 41. Kh2 h5 42. Bxf3 Kg8 43. Bd5+ Kh8 44. Bf3) 39... Kh7 {[%emt 0:00:03]} 40. Bxf3 {[%emt 0:00:35]} (40. Be4+ $142 Kg7 41. Rc7+ Kf8 42. e6) 40... Qd2 {[%emt 0:00:15]} 41. Rd8 {[%emt 0:33:50]} Qxa2 {[%emt 0:31:44]} 42. Kg2 {[%emt 0:00:26]} (42. Rd7+ $142 Kh8 43. Bd5 Qc2 44. e6 Qc1+ 45. Kh2 Qc8 46. Ra7 Qe8 47. Ra8 Qxa8 48. Bxa8) 42... Qf7 {[%emt 0:00:00]} 43. Rd6 {[%emt 0:00:00]} (43. Bc6 $142 {White threatens Rd7 and mate.} Qf5 44. Bd5) 43... h5 {[%emt 0:00:00]} 44. e6 {[%emt 0:00:00] Weighted Error Value: White=0.53/Black=0.73} 1-0

[Event "1st Serbian League 2022"]
[Site "Vrnjacka Banja"]
[Date "2022.09.24"]
[Round "5.34"]
[White "Arsovic, Zoran"]
[Black "Roganovic, Milos"]
[Result "1/2-1/2"]
[ECO "A16"]
[WhiteElo "2362"]
[BlackElo "2487"]
[Annotator "TA"]
[PlyCount "106"]
[EventDate "2022.09.20"]
[EventType "team-tourn"]
[EventCountry "SRB"]
[SourceTitle "playchess.com"]
[Source "ChessBase"]
[SourceQuality "1"]
[TimeControl "40/5400+30:1800+30"]

{[%evp 16,106,31,0,0,0,0,2,10,16,9,-10,-7,-12,-12,-10,7,-18,-5,-4,-4,-5,0,0,0,0,0,0,0,0,0,0,0,0,0,0,8,0,7,0,0,0,0,0,0,-20,-20,-26,0,-8,0,-10,0,0,0,0,0,0,0,0,0,0,0,0,0,0,0,0,0,0,0,0,0,0,0,0,0,0,0,0,0,0,0,0,0,-8,0,0,0,-8,0,0,0]} 1. Nf3 {[%emt 0:00:06]} Nf6 {[%emt 0:00:36]} 2. c4 {[%emt 0:00:45]} g6 {[%emt 0:01:40]} 3. Nc3 {[%emt 0:05:50]} d5 {[%emt 0:02:02]} 4. cxd5 {[%emt 0:01:47]} Nxd5 {[%emt 0:00:07]} 5. e4 {[%emt 0:05:17]} Nxc3 {[%emt 0:05:39]} 6. dxc3 {[%emt 0:00:48]} Qxd1+ {[%emt 0:00:13]} 7. Kxd1 {[%emt 0:00:09]} Nd7 {[%emt 0:03:34]} 8. Bf4 {[%emt 0:02:32]} c6 {[%emt 0:01:00]} 9. Kc2 {[%emt 0:02:14]} f6 {[%emt 0:05:09] A16: English Opening: 1...Nf6 with ...d5.} 10. Be3 {[%emt 0:16:22]} e5 {[%emt 0:06:59]} 11. Nd2 {[%emt 0:13:50]} a5 {[%emt 0:19:23]} 12. a4 {[%emt 0:03:21]} Bc5 {[%emt 0:01:54]} 13. Bxc5 {[%emt 0:02:01]} Nxc5 {[%emt 0:00:16]} 14. Bc4 {[%emt 0:01:31]} Ke7 {[%emt 0:05:59]} 15. f3 {[%emt 0:02:33] [#]} Rd8 $146 {[%emt 0:04:55]} ({Predecessor:} 15... h5 16. h4 f5 17. b3 fxe4 18. Nxe4 Bf5 19. Bd3 Bxe4 20. Bxe4 Nxe4 21. fxe4 Rhf8 {½-½ (49) Fishbein,M (2151)-Vaishali,R (2376) Hastings 2019}) 16. Rhe1 {[%emt 0:08:29]} Bd7 {[%emt 0:07:08]} 17. Nb3 {[%emt 0:08:12]} Nxb3 {[%emt 0:02:10]} 18. Bxb3 {[%emt 0:01:29]} f5 {[%emt 0:02:30]} 19. exf5 {[%emt 0:08:58]} Bxf5+ {[%emt 0:01:14]} 20. Kc1 {[%emt 0:00:04]} Kf6 {[%emt 0:00:38]} 21. Bc2 {[%emt 0:01:07]} Rd7 {[%emt 0:02:13]} 22. Re2 {[%emt 0:01:28]} Rad8 {[%emt 0:00:58]} 23. Ra3 {[%emt 0:01:28]} h5 {[%emt 0:04:59]} 24. Rb3 {[%emt 0:02:35]} Be6 {[%emt 0:01:17]} 25. Rb6 {[%emt 0:00:48]} Bc4 {[%emt 0:02:04]} 26. Rf2 {[%emt 0:00:25]} g5 {[%emt 0:05:03]} 27. b3 {[%emt 0:00:48]} Ba6 {[%emt 0:03:48]} 28. b4 {[%emt 0:00:32]} axb4 {[%emt 0:00:21]} 29. Rxb4 {[%emt 0:00:11]} h4 {[%emt 0:01:59]} 30. h3 {[%emt 0:05:50]} Rd5 {[%emt 0:03:02]} 31. Rg4 {[%emt 0:00:47]} Rc5 {[%emt 0:02:47]} 32. Kb2 {[%emt 0:00:19] The position is equal.} Bc4 {[%emt 0:01:11]} 33. g3 {[%emt 0:01:24]} Be6 {[%emt 0:02:08]} 34. gxh4 {[%emt 0:00:12]} Bxg4 {[%emt 0:00:08]} 35. fxg4+ $11 {[%emt 0:00:03][%mdl 4096] Endgame KRR-KRB} Kg7 {[%emt 0:00:44]} 36. hxg5 {[%emt 0:00:06]} e4 {[%emt 0:00:54]} 37. Bxe4 {[%emt 0:01:11]} Rxg5 {[%emt 0:00:52]} 38. Bf5 {[%emt 0:00:07]} Rh8 {[%emt 0:00:26]} 39. Rd2 {[%emt 0:02:14]} Kf6 {[%emt 0:00:55]} 40. Rd6+ {[%emt 0:00:26]} Ke5 {[%emt 0:00:27]} 41. Rd7 {[%emt 0:30:20]} Rxh3 {[%emt 0:31:06]} 42. Rxb7 {[%emt 0:00:00]} Rg8 {[%emt 0:00:00]} 43. Kb3 {[%emt 0:00:00]} Kd5 {[%emt 0:00:00]} 44. Kb4 {[%emt 0:00:00]} c5+ {[%emt 0:00:00]} 45. Kb3 {[%emt 0:00:00]} Rg3 {[%emt 0:00:00]} 46. Rb6 {[%emt 0:00:00] [#] Hoping for Be6+.} Ra8 {[%emt 0:00:00]} 47. Bd7 {[%emt 0:00:00] Black must now prevent Bc6+.} Ra7 {[%emt 0:00:00]} 48. Bc8 {[%emt 0:00:00]} Rg1 {[%emt 0:00:00] Threatens to win with ...Rb1+.} 49. Be6+ {[%emt 0:00:00]} Ke5 {[%emt 0:00:00] [#] ( -> ...Rb1+)} 50. Bf5 {[%emt 0:00:00] Against Rb1+} Kd5 {[%emt 0:00:00]} 51. Be6+ {[%emt 0:00:00]} Ke5 {[%emt 0:00:00] Strongly threatening ...Rb1+.} 52. Bf5 {[%emt 0:00:00] Against Rb1+} Kd5 {[%emt 0:00:00]} 53. Be6+ {[%emt 0:04:08]} Ke5 {[%emt 0:06:32] An even fight not without its subleties.  Weighted Error Value: White=0.03 (flawless) /Black=0.02 (flawless)} 1/2-1/2

[Event "1st Serbian League 2022"]
[Site "Vrnjacka Banja"]
[Date "2022.09.24"]
[Round "5.35"]
[White "Zajic, Milan"]
[Black "Radusinovic, Lazar"]
[Result "1/2-1/2"]
[ECO "B32"]
[WhiteElo "2402"]
[BlackElo "2308"]
[Annotator "TA"]
[PlyCount "148"]
[EventDate "2022.09.20"]
[EventType "team-tourn"]
[EventCountry "SRB"]
[SourceTitle "playchess.com"]
[Source "ChessBase"]
[SourceQuality "1"]
[TimeControl "40/5400+30:1800+30"]

{[%evp 15,148,31,40,35,54,51,37,47,50,40,35,45,35,35,35,50,58,55,54,49,81,28,68,68,105,95,97,103,153,152,175,60,67,64,68,62,69,68,81,60,83,83,93,84,99,114,95,70,142,94,96,77,100,81,96,103,103,95,112,0,95,0,111,100,207,213,208,201,201,192,193,143,210,220,468,468,468,457,457,450,432,407,384,339,1095,891,1073,1008,985,350,934,895,1013,943,1040,8,8,8,8,8,8,8,8,0,0,0,8,0,0,0,0,0,0,0,0,0,0,0,0,0,0,0,0,0,0,0,0,0,0,0,0,0,0,0,1429]} 1. e4 {[%emt 1:31:00]} c5 {[%emt 0:00:11]} 2. Nf3 {[%emt 0:00:00]} Nc6 {[%emt 0:00:05]} 3. d4 {[%emt 0:00:00]} cxd4 {[%emt 0:00:07]} 4. Nxd4 {[%emt 0:00:00]} e5 {[%emt 0:00:08]} 5. Nb5 {[%emt 0:00:00]} d6 {[%emt 0:00:06]} 6. N1c3 {[%emt 0:00:00]} a6 {[%emt 0:00:17]} 7. Na3 {[%emt 0:00:00]} b5 {[%emt 0:00:08]} 8. Nd5 {[%emt 0:00:00]} Nge7 {[%emt 0:00:35]} 9. Bd3 {[%emt 0:00:00] B32: Sicilian: Löwenthal and Kalashnikov Variations.} Nd4 {[%emt 0:11:38]} 10. O-O {[%emt 0:00:00]} Nxd5 {[%emt 0:08:13]} 11. exd5 {[%emt 0:00:00] White is slightly better.} g6 {[%emt 0:04:54]} 12. c3 {[%emt 0:00:00]} Nf5 {[%emt 0:02:24]} 13. Nc2 {[%emt 0:00:00][%cal Ba3c2,Bc2b4,Bb4c6][%mdl 32]} Bg7 {[%emt 0:07:30]} 14. a4 {[%emt 0:00:00]} Bd7 {[%emt 0:04:23]} 15. Nb4 $36 {[%emt 0:00:00][%mdl 2048] White has some pressure.} O-O {[%emt 0:06:36]} 16. Nc6 {[%emt 0:00:00]} Qb6 {[%emt 0:05:32]} 17. Be4 {[%emt 0:00:00] [#]} Qc7 $146 {[%emt 0:07:34]} ({Predecessor:} 17... Nh6 18. Bf3 Nf5 19. Re1 Rfe8 20. g3 Bf8 21. Qb3 Qc5 22. Bd2 Rec8 23. Qa2 bxa4 24. Qxa4 {½-½ (63) Chukanov,I (2452)-Laliga,O (2321) ICCF email 2017}) 18. Qe2 {[%emt 0:00:00]} (18. Qb3 $16) 18... bxa4 {[%emt 0:07:11]} 19. Rxa4 {[%emt 0:00:00]} Bxc6 {[%emt 0:00:58]} 20. dxc6 {[%emt 0:00:00] Hoping for Rb4.} Ne7 {[%emt 0:00:21]} 21. Qc4 {[%emt 0:00:00] Against d5} (21. Rxa6 $6 d5 22. Bb1 Rxa6 23. Qxa6 Nxc6 $11) 21... Rfc8 {[%emt 0:02:10]} (21... Kh8 $142) 22. Rd1 $1 $16 {[%emt 0:00:00]} d5 {[%emt 0:00:56]} 23. Bxd5 {[%emt 0:00:00]} (23. Rxd5 $18 Nxd5 24. Bxd5) 23... Nxd5 $14 {[%emt 0:00:12][%mdl 64] Remove Defender} 24. Rxd5 {[%emt 0:00:00] And now Rd7 would win.} Qxc6 {[%emt 0:00:08]} 25. Qxc6 {[%emt 0:00:00]} Rxc6 {[%emt 0:00:29]} 26. Kf1 {[%emt 0:00:00]} Bf6 {[%emt 0:02:30]} 27. Ke2 {[%emt 0:00:00]} Rd8 {[%emt 0:00:39]} 28. Rda5 {[%emt 0:00:00]} Rdd6 {[%emt 0:02:25]} 29. Be3 {[%emt 0:00:00]} h5 {[%emt 0:03:15]} 30. Rb4 {[%emt 0:01:56]} Kg7 {[%emt 0:04:36]} 31. Rb7 {[%emt 0:02:24]} Rc8 {[%emt 0:11:09]} (31... g5 $14) 32. Bc5 {[%emt 0:07:41]} ({White should play} 32. Ra7) 32... Re6 $16 {[%emt 0:01:16] White must now prevent ...Bd8.} 33. Bb4 {[%emt 0:03:05]} Rd8 {[%emt 0:03:49]} 34. c4 {[%emt 0:00:16]} Rd4 {[%emt 0:01:51]} 35. b3 {[%emt 0:00:17]} Re4+ {[%emt 0:01:13]} 36. Kf1 {[%emt 0:00:23] White has more active pieces.} Rd4 {[%emt 0:00:23]} 37. Ke2 {[%emt 0:00:06]} Re4+ $1 {[%emt 0:00:03]} 38. Kf1 {[%emt 0:00:07]} Rd4 {[%emt 0:00:01]} 39. Rd5 {[%emt 0:00:55]} Rc6 {[%emt 0:00:15]} (39... e4 $16 {was necessary.}) 40. Rxd4 $1 $18 {[%emt 0:01:20]} exd4 {[%emt 0:00:07][%mdl 4096] Endgame KRB-KRB} 41. Ke2 {[%emt 0:30:27]} g5 {[%emt 0:34:08]} 42. h3 {[%emt 0:00:00]} Be5 {[%emt 0:00:00]} 43. c5 {[%emt 0:00:00]} ({White should try} 43. Kd3 $18) 43... g4 {[%emt 0:00:00]} (43... Rc8 $16 44. Kd3 a5) 44. Rb6 {[%emt 0:00:00]} Rxb6 {[%emt 0:00:00]} (44... gxh3 45. gxh3 (45. Rxc6 $2 hxg2 46. Rxa6 g1=Q $19) 45... Rxb6 46. cxb6 Kf6) 45. cxb6 {[%emt 0:00:00][%cal Bc5b6,Bb6b7][%mdl 32] KB-KB} Kf6 {[%emt 0:00:00]} 46. b7 {[%emt 0:01:40]} Ke6 {[%emt 0:00:00]} 47. Bc5 $1 {[%emt 0:00:27]} Bb8 {[%emt 0:00:00]} 48. Kd3 {[%emt 0:01:46]} Kd5 {[%emt 0:00:00]} 49. Bxd4 {[%emt 0:00:24]} Kc6 $2 {[%emt 0:00:00] [#]} (49... f5 50. Bf6 gxh3 51. gxh3 Bc7) 50. Ke4 $1 {[%emt 0:00:41]} (50. hxg4 hxg4 51. Ke4 Kxb7 $16) 50... Kxb7 {[%emt 0:00:00]} 51. Kf5 {[%emt 0:00:31]} Kc6 {[%emt 0:00:00] [#]} 52. h4 $1 {[%emt 0:00:23]} ({Weaker is} 52. hxg4 hxg4 53. Kxg4 Kd5 $16) 52... Kd5 $2 {[%emt 0:00:00]} (52... Bc7 53. Kg5 Kd5) 53. Bb6 {[%emt 0:00:06]} Kc6 {[%emt 0:00:00]} 54. Be3 {[%emt 0:00:20]} Kd5 {[%emt 0:00:00]} 55. f3 $2 {[%emt 0:01:09]} (55. g3 $18 {Strongly threatening Kg5.} Be5 56. Kg5) 55... gxf3 $11 {[%emt 0:00:00] The position is equal.} 56. gxf3 {[%emt 0:00:02]} Bg3 {[%emt 0:00:00]} 57. Bg5 {[%emt 0:00:58]} ({Don't take} 57. Kg5 Ke6 $14) 57... Be5 {[%emt 0:00:00]} 58. Bf6 {[%emt 0:00:20]} Bg3 {[%emt 0:00:00]} 59. Kg5 {[%emt 0:00:28]} Ke6 {[%emt 0:00:00][%cal Og3h4] aiming for ...Bxh4+!} 60. Bc3 {[%emt 0:00:38]} Bf2 {[%emt 0:00:00]} 61. Ba5 {[%emt 0:00:31]} ({Much less strong is} 61. Kxh5 Kf5 $16) 61... f6+ {[%emt 0:00:00]} 62. Kxh5 {[%emt 0:00:12]} Kf5 $1 {[%emt 0:00:00]} 63. Bd2 {[%emt 0:00:43]} Bg3 $1 {[%emt 0:00:00]} 64. Be3 {[%emt 0:00:30]} Be1 $1 {[%emt 0:00:00]} 65. Bc1 {[%emt 0:00:26]} Bf2 {[%emt 0:00:00]} 66. Bb2 {[%emt 0:00:15]} Be1 {[%emt 0:00:00]} 67. Bd4 {[%emt 0:00:42]} Bg3 {[%emt 0:00:00]} 68. Bc5 {[%emt 0:00:13]} Be1 {[%emt 0:00:00]} 69. Bd6 {[%emt 0:00:12]} Bf2 {[%emt 0:00:00]} 70. Bh2 {[%emt 0:00:21]} Be1 {[%emt 0:00:00]} 71. Bd6 {[%emt 0:00:56]} Bf2 {[%emt 0:00:00]} 72. Bc7 {[%emt 0:00:12]} Be1 {[%emt 0:00:00]} 73. Bd8 {[%emt 0:00:10]} Bg3 {[%emt 0:00:00]} 74. Be7 {[%emt 0:00:47]} Ke5 $2 {[%emt 0:17:04][%mdl 40960] Weighted Error Value: White=0.22 (precise) /Black=0.19 (very precise) . An unexpected result.} (74... Be1 $11) 1/2-1/2